Cogmind - Beta 13 X1 @@@ ROGUE MODE // 2023.12.07 @ 17:55:18 Player: alice_fexa Result: Escaped! Performance ------------- Evolutions (9) 4500 Regions Visited (22) 4400 Robots Destroyed (150) 750 Value Destroyed (3535) 3535 Prototype IDs (97) 1940 Alien Tech Used (1) 200 Bonus (6399) 6399 TOTAL SCORE: 21724 Bonus ------- Triggered Max Security 3000 High Alert Combat Kills 433 Follower Combat Kills 1099 Aligned with FarCom 300 Met Data Miner 300 Win 3000 Friendly Fire -1733 Cogmind --------- Core Integrity 1518/1600 Matter 195/300 Energy 246/250 System Corruption 0% Temperature Cool (6) Movement Flying (19) Location To Epsilon Eridani Parts ------- > --- POWER (3) -------- Micro Fission Core Micro Antimatter Reactor Micro Antimatter Reactor > --- PROPULSION (6) --- Cooled Field Propulsion Drive Diametric Drive Diametric Drive Electron Diverter Electron Diverter Cooled Impulse Thruster > --- UTILITY (12) ----- Experimental Cooling System Small Storage Unit Structural Scanner Spectral Analyzer Hacking Suite Hacking Suite Deep Network Scanner System Shield System Shield Advanced System Shield Advanced System Shield Advanced System Shield > --- WEAPON (4) ------- Enhanced Nova Cannon Nanosword > --- INVENTORY (8) ---- Cooled Cesium-ion Thruster Diametric Drive Advanced Transmission Jammer Layered Medium Armor Plating Experimental Thermal Defense Suite Advanced System Restoration Module Advanced Trap Extractor (2/8 Shock) Hellfire Missile Launcher Peak State ------------ > --- POWER ------------ Micro Fission Core Micro Antimatter Reactor > --- PROPULSION ------- Cooled Cesium-ion Thruster Diametric Drive Diametric Drive Electron Diverter Electron Diverter > --- UTILITY ---------- Experimental Cooling System Small Storage Unit Structural Scanner Spectral Analyzer Experimental Utility Shielding Hacking Suite Hacking Suite Deep Network Scanner System Shield Improved System Shield Ghost Barrier > --- WEAPON ----------- Drained L-Cannon > --- INVENTORY -------- Micro Antimatter Reactor Cooled Impulse Thruster Advanced Transmission Jammer Layered Medium Armor Plating Advanced System Restoration Module Advanced Trap Extractor Cooled Plasma Cannon Nanosword [Rating: 173] Favorites ----------- Power Micro Fission Core Engine Makeshift Power Source Power Core Micro Fission Core Reactor Micro Antimatter Reactor Propulsion Cooled VTOL Module Treads Light Treads Wheel Wheel Hover Unit Aerolev Unit Flight Unit Cooled VTOL Module Utility Hacking Suite Device Structural Scanner Storage Small Storage Unit Processor Enhanced Optical Array Hackware Hacking Suite Protection Experimental Utility Shielding Weapon Improved Datajack Energy Gun Particle Gun Energy Cannon Cooled Plasma Cannon Ballistic Gun Autogun Ballistic Cannon Compact Linear Accelerator Launcher Heavy Rocket Launcher Impact Weapon Powered Hammer Slashing Weapon Nanosword Piercing Weapon Spear Special Melee Weapon Improved Datajack Build | -11 -10 -10 -10 -9 -8 -7 -7 -7 -7 -6 -6 -5 -5 -5 -4 -4 -3 -3 -2 -2 -2 -1 ------- Run | Jun Mat Min Exi Min Mat Fac Low Low Dat Pro Fac Fac Was Fac Fac Ext Res Qua Res Tes Sec Acc Slots Evolved 18 | . . . . . 4 2 . . . . 2 2 . . 2 . 2 . 2 . . 2 Power 2 | . . . . . . . . . . . . 1 . . 1 . . . . . . . Propulsion 4 | . . . . . 1 1 . . . . . . . . 1 . . . . . . 1 Utility 10 | . . . . . 3 1 . . . . 2 1 . . . . . . 2 . . 1 Weapon 2 | . . . . . . . . . . . . . . . . . 2 . . . . . Parts Attached 236 | 6 13 6 . 2 36 37 1 . 1 2 13 3 . 34 30 5 5 3 9 10 6 14 Power 20 | 1 1 1 . . 2 5 . . . 1 . . . 3 1 . . 1 2 . . 2 Engine 7 | 1 1 1 . . 2 1 . . . 1 . . . . . . . . . . . . Core 7 | . . . . . . 4 . . . . . . . 1 1 . . . 1 . . . Reactor 6 | . . . . . . . . . . . . . . 2 . . . 1 1 . . 2 Propulsion 53 | 2 2 3 . . 9 10 . . . . 3 1 . . 12 . . . 5 2 . 4 Treads 7 | 2 . 1 . . 3 . . . . . . . . . 1 . . . . . . . Leg . | . . . . . . . . . . . . . . . . . . . . . . . Wheel 9 | . 2 2 . . 5 . . . . . . . . . . . . . . . . . Hover 1 | . . . . . 1 . . . . . . . . . . . . . . . . . Flight 36 | . . . . . . 10 . . . . 3 1 . . 11 . . . 5 2 . 4 Utility 85 | 1 5 . . . 7 15 1 . . . 5 2 . 18 11 2 4 2 2 2 2 6 Device 45 | . 2 . . . 3 9 1 . . . . 1 . 15 7 1 1 1 1 1 1 1 Storage 6 | 1 2 . . . . . . . . . . 1 . 2 . . . . . . . . Processor 8 | . . . . . 1 3 . . . . 2 . . . 1 . . . . . . 1 Hackware 15 | . . . . . 1 2 . . . . 3 . . 1 . . 1 1 1 . 1 4 Protection 11 | . 1 . . . 2 1 . . . . . . . . 3 1 2 . . 1 . . Artifact . | . . . . . . . . . . . . . . . . . . . . . . . Weapon 78 | 2 5 2 . 2 18 7 . . 1 1 5 . . 13 6 3 1 . . 6 4 2 Energy Gun 4 | . 1 . . . 1 . . . . . . . . . 1 . . . . 1 . . Energy Cannon 17 | . . . . . 1 . . . . . 2 . . 4 3 . 1 . . 2 2 2 Ballistic Gun 16 | 2 3 1 . 1 9 . . . . . . . . . . . . . . . . . Ballistic Cannon 1 | . . . . . . . . . . . . . . 1 . . . . . . . . Launcher 12 | . 1 1 . 1 3 . . . . 1 1 . . 1 . 1 . . . 1 1 . Special Weapon . | . . . . . . . . . . . . . . . . . . . . . . . Impact Weapon 11 | . . . . . 4 4 . . 1 . 1 . . 1 . . . . . . . . Slashing Weapon 4 | . . . . . . 1 . . . . . . . 1 . . . . . 1 1 . Piercing Weapon 1 | . . . . . . 1 . . . . . . . . . . . . . . . . Special Melee Weapon 12 | . . . . . . 1 . . . . 1 . . 5 2 2 . . . 1 . . Unidentified Prototypes 38 | . . . . 1 6 4 . . . . 2 . . 9 8 . 2 . . 3 1 2 Parts Lost 15 | . . 1 . . 3 1 . . 1 . . . . 1 . . 2 1 . . 4 1 Power . | . . . . . . . . . . . . . . . . . . . . . . . Propulsion 4 | . . 1 . . 1 . . . . . . . . . . . . 1 . . 1 . Utility 7 | . . . . . 1 . . . . . . . . 1 . . 2 . . . 2 1 Weapon 4 | . . . . . 1 1 . . 1 . . . . . . . . . . . 1 . Highest Loss Streak 3 | . . 1 . . 1 1 . . 1 . . . . 1 . . 1 1 . . 3 1 To Critical Strikes . | . . . . . . . . . . . . . . . . . . . . . . . Average Slot Usage (%) 95 | . 99 99 100 100 99 99 100 100 99 100 99 94 94 93 93 94 85 88 88 91 85 79 Engine 4 | . 14 14 14 14 9 . . . . . 6 5 5 . . . . . . . . . Core 3 | . . . . . . 6 7 7 7 7 . . . 4 10 10 9 7 3 4 4 4 Treads 3 | . 20 14 14 14 9 . . . . . . . . . . . . . . . . . Wheel 3 | . 7 13 14 14 17 . . . . . . . . . . . . . . . . . Flight 17 | . . . . . . 29 30 30 30 30 25 23 23 23 25 26 23 23 19 20 20 20 Device 10 | . 12 14 14 14 18 11 15 15 15 15 11 7 5 4 6 5 4 4 8 7 7 8 Storage 5 | . 14 14 14 14 9 . . . . . . 3 5 5 5 5 4 4 4 4 4 4 Processor 7 | . . . . . 9 10 7 7 7 7 7 11 11 11 10 10 6 4 4 4 4 4 Hackware 19 | . . . . . . 22 23 23 23 23 33 29 29 28 21 21 20 20 25 26 24 26 Protection 2 | . 1 . . . 8 . . . . . . . . . 3 5 3 4 4 4 4 . Energy Cannon 1 | . . . . . 1 . . . . . 3 5 5 2 3 1 1 4 4 3 . 3 Ballistic Gun 5 | . 21 26 28 28 14 . . . . . . . . . . . . . . . . . Impact Weapon 1 | . . . . . 1 3 . . . . 3 5 5 3 . . . . . . . . Slashing Weapon 1 | . . . . . . . . . . . . . . 1 5 5 4 4 4 5 5 4 Piercing Weapon 1 | . . . . . . 6 7 7 7 7 2 . . . . . . . . . . . Special Melee Weapon 1 | . . . . . . 3 7 7 6 . 2 . . 2 1 3 4 4 4 4 1 . Naked Turns . | . . . . . . . . . . . . . . . . . . . . . . . Heaviest Build 106 | 13 92 94 94 94 106 15 13 13 15 19 19 21 21 22 27 31 28 31 32 36 36 43 Greatest Support 44 | 40 40 20 10 10 32 20 20 20 20 28 22 22 22 22 32 35 35 35 36 39 36 44 Greatest Overweight (x) 10 | . 9 9 9 9 10 . . . . . . 1 . . 1 . . . 1 1 . . Average Overweight (x) . | . 3 7 9 9 3 . . . . . . . . . . . . . . . . . Largest Inventory Capacity 25 | 8 25 25 25 25 25 25 5 5 5 5 5 8 8 8 8 8 8 8 8 8 8 8 Average Capacity 11 | 7 17 25 25 25 25 5 5 5 5 5 5 6 8 8 8 8 8 8 8 8 8 8 Most Carried 25 | 2 25 25 25 25 25 25 5 5 5 5 5 6 8 8 8 8 8 7 8 8 8 8 Average Carried 10 | 1 12 24 24 24 24 4 5 5 3 5 4 5 6 7 7 8 7 6 7 8 7 6 Final Capacity 25 | 8 25 25 25 25 25 5 5 5 5 5 5 8 8 8 8 8 8 8 8 8 8 8 Final Carried 25 | 2 25 25 25 25 25 5 5 5 5 5 5 6 8 8 8 8 6 7 8 8 7 8 Class Distribution -------------------- 57% | Wizard-Scout 8% | Mutant 8% | Scavenger-Mutant 7% | Hacker-Scout 5% | Scavenger-Skirmisher 3% | Skirmisher Dominant Class ---------------- Mutant | -10/Materials Scavenger-Mutant | -10/Mines Scavenger-Mutant | -10/Exiles Scavenger-Mutant | -9/Mines Scavenger-Skirmisher | -8/Materials Hacker-Scout | -7/Factory Hacker-Sprinter | -7/Lower Caves Hacker-Sprinter | -7/Lower Caves Hacker-Sprinter | -7/Data Miner Hacker-Sprinter | -6/Proximity Caves Wizard-Scout | -6/Factory Wizard-Scout | -5/Factory Wizard-Scout | -5/Waste Wizard-Scout | -5/Factory Wizard-Scout | -4/Factory Wizard-Scout | -4/Extension Wizard-Scout | -3/Research Wizard-Scout | -3/Quarantine Wizard-Scout | -2/Research Wizard-Scout | -2/Testing Wizard-Scout | -2/Section 7 Wizard-Scout | -1/Access Resources | -11 -10 -10 -10 -9 -8 -7 -7 -7 -7 -6 -6 -5 -5 -5 -4 -4 -3 -3 -2 -2 -2 -1 ----------- Run | Jun Mat Min Exi Min Mat Fac Low Low Dat Pro Fac Fac Was Fac Fac Ext Res Qua Res Tes Sec Acc Matter Collected 4253 | 208 664 129 . 173 1094 400 . 10 . 62 140 10 . 452 305 105 60 20 50 4 68 299 Remotely . | . . . . . . . . . . . . . . . . . . . . . . . Salvage Created 6674 | . 509 31 . 177 1063 584 . 53 21 27 549 117 . 1017 598 841 369 41 124 40 110 403 Parts 276 | . 25 4 . 7 71 16 . . 3 3 16 3 . 22 29 34 13 1 5 4 5 15 Haulers Intercepted 22 | . 1 . . . 4 4 . . . . 3 1 . 3 2 . 2 . 1 . . 1 Recyclers Shooed 5 | . . 2 . . 1 . . . . . . . . . . 2 . . . . . . Parts Field Recycled . | . . . . . . . . . . . . . . . . . . . . . . . Retrieved Matter . | . . . . . . . . . . . . . . . . . . . . . . . Parts Self-Destructed 3 | . . . . . . . . . . 3 . . . . . . . . . . . . Prevented . | . . . . . . . . . . . . . . . . . . . . . . . Kills | -11 -10 -10 -10 -9 -8 -7 -7 -7 -7 -6 -6 -5 -5 -5 -4 -4 -3 -3 -2 -2 -2 -1 ------- Run | Jun Mat Min Exi Min Mat Fac Low Low Dat Pro Fac Fac Was Fac Fac Ext Res Qua Res Tes Sec Acc Combat Hostiles Destroyed 56 | . 9 3 . . 22 . . . . 3 . . . . . 9 2 . . 4 4 . Melee 6 | . . . . . . . . . . . . . . . . 4 2 . . . . . Guns 21 | . 9 . . . 12 . . . . . . . . . . . . . . . . . AOE 29 | . . 3 . . 10 . . . . 3 . . . . . 5 . . . 4 4 . Classes Destroyed 12 | . 8 . . . 1 2 . . . . . . . . . . 1 . . . . . Worker 5 | . 1 1 . . . . . . . . . . . 2 1 . . . . . . . Builder 6 | . . . . . . 2 . . . . . . . 1 1 1 . . . . . 1 Tunneler 2 | . 1 . . 1 . . . . . . . . . . . . . . . . . . Hauler 22 | . 1 . . . 4 4 . . . . 3 1 . 3 2 . 2 . 1 . . 1 Recycler 18 | . 1 . . 1 2 3 . . . . 1 . . 3 2 3 . . . . . 2 Mechanic 1 | . . . . . . 1 . . . . . . . . . . . . . . . . Operator 5 | . 1 . . . 1 . . . . . . . . 1 1 . . . . . 1 . Watcher 33 | . 2 . . . 5 4 . . . . 4 . . 9 3 1 1 1 1 . 1 1 Swarmer 33 | . 5 3 . . 12 . . . . 3 . . . . . 2 . . . 4 4 . Grunt 16 | . 4 . . . 6 . . . . . . . . . . 5 1 . . . . . Sentry 6 | . . . . . 4 . . . . . . . . . . 2 . . . . . . Hunter 1 | . . . . . . . . . . . . . . . . . 1 . . . . . Best Kill Streak 5 | . 2 3 . 1 4 3 . . 1 3 1 1 . 2 1 5 2 1 2 4 4 4 Combat Bots Only 5 | . 2 3 . . 4 . . . . 3 . . . . . 5 1 . . 4 4 . Max Kills in Single Turn 4 | . 1 2 . 2 4 1 . . 1 2 1 1 . 1 1 3 1 1 1 3 3 1 Gunslinging . | . . . . . . . . . . . . . . . . . . . . . . . Exploded 4 | . . 2 . . 4 . . . . 2 . . . . . 3 . . . 3 3 . Melee 1 | . . . . . . . . . . . . . . . . 1 1 . . . . . Uniques/NPCs Destroyed 2 | . . . . 1 . . . . 1 . . . . . . . . . . . . . YI-UF0 (-9/Mines) Data Miner (-7/Data Miner) Combat | -11 -10 -10 -10 -9 -8 -7 -7 -7 -7 -6 -6 -5 -5 -5 -4 -4 -3 -3 -2 -2 -2 -1 -------- Run | Jun Mat Min Exi Min Mat Fac Low Low Dat Pro Fac Fac Was Fac Fac Ext Res Qua Res Tes Sec Acc Damage Taken 3150 | . 474 107 . . 644 11 35 . 45 104 22 . . 280 . 97 79 301 21 21 689 220 Core 663 | . 146 16 . . 51 . . . . 29 12 . . 108 . . 37 82 21 . 79 82 Absorbed by Shields . | . . . . . . . . . . . . . . . . . . . . . . . Redirected to Shielding 177 | . 9 . . . . . . . . . . . . . . 22 . . . 18 128 . Regen/Repaired (Parts) 434 | . . . . . . . . . . . 16 . . 137 99 . . . 182 . . . Core Remaining (%) 88 | 100 . . . 35 90 . . . . 95 98 . . 89 . 100 . 90 . . 93 94 Volleys Fired 264 | . 58 7 . 28 66 . . . . 3 15 . . 14 32 4 7 . 4 2 8 16 Largest 2 | . 2 2 . 2 2 . . . . 1 1 . . 1 1 1 1 . 1 1 1 1 Hottest 120 | . 85 53 . 46 93 . . . . 39 35 . . 35 105 60 105 . 35 60 60 120 Shots Fired 416 | . 113 13 . 56 129 . . . . 3 15 . . 14 32 4 7 . 4 2 8 16 Gun 297 | . 113 11 . 56 117 . . . . . . . . . . . . . . . . . Cannon 104 | . . . . . 9 . . . . . 15 . . 14 32 2 7 . 4 . 5 16 Launcher 15 | . . 2 . . 3 . . . . 3 . . . . . 2 . . . 2 3 . Special . | . . . . . . . . . . . . . . . . . . . . . . . Kinetic 273 | . 89 11 . 56 117 . . . . . . . . . . . . . . . . . Thermal 128 | . 24 . . . 9 . . . . . 15 . . 14 32 2 7 . 4 . 5 16 Explosive 15 | . . 2 . . 3 . . . . 3 . . . . . 2 . . . 2 3 . Electromagnetic . | . . . . . . . . . . . . . . . . . . . . . . . Robot Hit Streak 20 | . 8 8 . 5 20 . . . . . 6 . . . . 7 . . . 1 2 . Robot Miss Streak 7 | . 7 1 . 3 7 . . . . 1 . . . . . . . . . 1 1 . Penetration Max . | . . . . . . . . . . . . . . . . . . . . . . . Secondary Targets . | . . . . . . . . . . . . . . . . . . . . . . . Shots Hit Robots 379 | . 66 9 . 34 97 34 . 2 2 . 24 1 . 26 15 22 19 3 8 1 6 10 Core Hits 161 | . 24 4 . 7 49 7 . 1 1 4 8 1 . 7 9 15 6 1 2 5 8 2 Critical Kills 2 | . . . . . . . . . . . . . . 2 . . . . . . . . Critical Parts Destroyed 7 | . . . . . . 2 . . . . 1 . . 4 . . . . . . . . Critical Strikes 19 | . . . . . . 5 . . . . 2 . . 6 . . 3 . 2 . 1 . Smash 9 | . . . . . . 2 . . . . 1 . . 6 . . . . . . . . Sever 6 | . . . . . . . . . . . . . . . . . 3 . 2 . 1 . Impale 4 | . . . . . . 3 . . . . 1 . . . . . . . . . . . Melee Attacks 476 | . . . . . 16 83 . 2 24 2 71 6 . 87 50 35 26 10 23 5 14 22 Impact 125 | . . . . . 16 20 . . . 2 22 6 . 59 . . . . . . . . Slashing 201 | . . . . . . . . . . . . . . 27 48 27 26 10 23 5 13 22 Piercing 134 | . . . . . . 60 . 2 23 . 49 . . . . . . . . . . . Sneak Attacks 80 | . . . . . 1 15 . . 2 . 8 1 . 11 9 17 7 1 2 . 2 4 Combat Hostiles 10 | . . . . . . 3 . . . . . . . . . 2 4 1 . . . . Follow-up Attacks 2 | . . . . . . 2 . . . . . . . . . . . . . . . . Damage Inflicted 18286 | . 907 342 . 511 2242 1738 . 129 63 195 1245 95 . 1856 1610 2129 1713 255 689 498 1176 893 Guns 2918 | . 907 119 . 511 1381 . . . . . . . . . . . . . . . . . Cannons 331 | . . . . . 142 . . . . . 189 . . . . . . . . . . . Explosions 2969 | . . 223 . . 558 . . . . 195 . . . . . 734 . . . 498 761 . Melee 12068 | . . . . . 161 1738 . 129 63 . 1056 95 . 1856 1610 1395 1713 255 689 . 415 893 Ramming . | . . . . . . . . . . . . . . . . . . . . . . . Kinetic 2786 | . 775 119 . 511 1381 . . . . . . . . . . . . . . . . . Thermal 463 | . 132 . . . 142 . . . . . 189 . . . . . . . . . . . Explosive 2969 | . . 223 . . 558 . . . . 195 . . . . . 734 . . . 498 761 . Electromagnetic . | . . . . . . . . . . . . . . . . . . . . . . . Impact 2484 | . . . . . 161 581 . . . . 248 95 . 1399 . . . . . . . . Slashing 7427 | . . . . . . . . . . . . . . 457 1610 1395 1713 255 689 . 415 893 Piercing 2157 | . . . . . . 1157 . 129 63 . 808 . . . . . . . . . . . Highest Corruption 7 | . . . . . . 1 . . . . . . 7 7 . . . 1 . 4 1 . Average Corruption 4 | . . . . . . 1 . . . . . . 7 6 . . . 1 . 2 1 . Corruption Purged 11 | . . . . . . 1 . . . . . . . 7 . . . . . 3 . . Corruption Blocked . | . . . . . . . . . . . . . . . . . . . . . . . Effects 28 | . . . . . . . . . . . . . . 24 . . . 1 . 2 1 . Message Errors 5 | . . . . . . . . . . . . . . 5 . . . . . . . . Matter Fused 6 | . . . . . . . . . . . . . . 5 . . . . . . 1 . Heat Flow Errors 7 | . . . . . . . . . . . . . . 7 . . . . . . . . Energy Discharges 7 | . . . . . . . . . . . . . . 5 . . . 1 . 1 . . Data Loss (minor) 3 | . . . . . . . . . . . . . . 2 . . . . . 1 . . Overload Shots 3 | . . . . . . . . . . . . . . . 2 . 1 . . . . . Overflow Damage 3102 | . . 33 . . 71 435 . 53 . . 283 . . 764 323 320 8 35 108 14 280 375 Projectiles 10 | . . . . . . . . . . . 10 . . . . . . . . . . . Explosions 188 | . . 33 . . 58 . . . . . . . . . . 15 . . . 14 68 . Melee 2904 | . . . . . 13 435 . 53 . . 273 . . 764 323 305 8 35 108 . 212 375 Knockbacks 10 | . . . . . . 2 . . . . 3 . . 5 . . . . . . . . Impact 10 | . . . . . . 2 . . . . 3 . . 5 . . . . . . . . Kinetic . | . . . . . . . . . . . . . . . . . . . . . . . Secondary . | . . . . . . . . . . . . . . . . . . . . . . . Self-Inflicted Damage 236 | . . 59 . . 126 . . . . . . . . . . . . . . . 51 . Shots 7 | . . 2 . . 4 . . . . . . . . . . . . . . . 1 . Rammed 3 | . . . . . . . . . . . . . . . . . . 1 . . 2 . Targets Rammed 3 | . . . . . . . . . . . . . . . . . . 1 . . 2 . Kicked . | . . . . . . . . . . . . . . . . . . . . . . . Crushed . | . . . . . . . . . . . . . . . . . . . . . . . Highest Temperature 292 | . 36 . . . 1 292 . . . 86 . . . 214 62 100 62 . . . . 22 Average Temperature 27 | . 11 . . . 1 147 . . . 50 . . . 92 6 16 21 . . . . 7 Received Heat Transfer 717 | . 222 . . . 234 6 9 . . 15 6 . . 9 . 9 9 36 . . 126 36 Siege Activations . | . . . . . . . . . . . . . . . . . . . . . . . Robots Corrupted . | . . . . . . . . . . . . . . . . . . . . . . . Combat Hostiles . | . . . . . . . . . . . . . . . . . . . . . . . Parts Fried 27 | . . . . . 3 6 . . . . 1 . . 17 . . . . . . . . Impact Corruptions 42 | . . . . . 1 10 . . . . 9 . . 22 . . . . . . . . Robots Melted . | . . . . . . . . . . . . . . . . . . . . . . . Combat Hostiles . | . . . . . . . . . . . . . . . . . . . . . . . Parts Melted . | . . . . . . . . . . . . . . . . . . . . . . . Heat Transferred 892 | . 333 . . . 259 . . . . . 300 . . . . . . . . . . . Parts Sabotaged . | . . . . . . . . . . . . . . . . . . . . . . . Parts Stolen . | . . . . . . . . . . . . . . . . . . . . . . . Parts Stripped . | . . . . . . . . . . . . . . . . . . . . . . . Power Chain Reactions . | . . . . . . . . . . . . . . . . . . . . . . . Missiles Intercepted . | . . . . . . . . . . . . . . . . . . . . . . . Alert | -11 -10 -10 -10 -9 -8 -7 -7 -7 -7 -6 -6 -5 -5 -5 -4 -4 -3 -3 -2 -2 -2 -1 ------- Run | Jun Mat Min Exi Min Mat Fac Low Low Dat Pro Fac Fac Was Fac Fac Ext Res Qua Res Tes Sec Acc Peak Influence 2128 | . 197 199 . 10 259 190 . . . . 189 103 51 244 170 726 744 1839 1155 2128 2113 1322 Initial 1249 | . . 27 . . . 65 . . . . 65 71 36 35 91 6 381 191 1100 13 1197 1249 Average 172 | . 67 64 . 3 97 78 . . . . 92 81 43 82 59 141 445 1716 161 1792 1911 1014 Maximum Alert Level 5 | . . . . . 1 . . . . . . . . 1 . 3 3 5 4 5 5 4 Low Security (%) 87 | 100 100 100 . 100 94 100 . . . . 100 100 100 95 100 78 . . 87 . . . Level 1 4 | . . . . . 5 . . . . . . . . 4 . 14 50 . . . . . Level 2 1 | . . . . . . . . . . . . . . . . . 34 . . . . 11 Level 3 2 | . . . . . . . . . . . . . . . . 6 14 . . . . 64 Level 4 1 | . . . . . . . . . . . . . . . . . . . 12 . . 23 Level 5 . | . . . . . . . . . . . . . . . . . . . . . . . High Security . | . . . . . . . . . . . . . . . . . . . . . . . Max Security 2 | . . . . . . . . . . . . . . . . . . 99 . 99 99 . Squads Dispatched 69 | . . . . . 3 3 . . . . 11 . . 11 7 1 5 6 2 6 12 2 Investigation 9 | . . . . . 1 2 . . . . 1 . . 2 1 1 1 . . . . . Extermination 10 | . . . . . . . . . . . 3 . . 4 2 . . . 1 . . . Reinforcement 20 | . . . . . 1 1 . . . . 6 . . 5 4 . 1 . 1 . . 1 Assault 27 | . . . . . . . . . . . . . . . . . 2 6 . 6 12 1 Garrison 3 | . . . . . 1 . . . . . 1 . . . . . 1 . . . . . Intercept . | . . . . . . . . . . . . . . . . . . . . . . . Searches Triggered . | . . . . . . . . . . . . . . . . . . . . . . . Construction Impeded 1 | . . . . . . . . . . . . . . 1 . . . . . . . . Haulers Reinforced 7 | . . . . . . 1 . . . . 2 . . 1 1 . 1 . 1 . . . Active Scanning Responses . | . . . . . . . . . . . . . . . . . . . . . . . Cargo Convoy Interrupts 3 | . . . . . . . . . . . 1 . . 1 1 . . . . . . . Stealth | -11 -10 -10 -10 -9 -8 -7 -7 -7 -7 -6 -6 -5 -5 -5 -4 -4 -3 -3 -2 -2 -2 -1 --------- Run | Jun Mat Min Exi Min Mat Fac Low Low Dat Pro Fac Fac Was Fac Fac Ext Res Qua Res Tes Sec Acc Distress Signals 7 | . . . . . 1 . . . . . 3 . . . . . 1 . . . 2 . Communications Jammed 2 | . . . . . . . . . . . . . . . . . . 2 . . . . Distress Signals 2 | . . . . . . . . . . . . . . . . . . 2 . . . . Times Spotted 290 | . 25 4 . . 32 13 4 . 4 9 14 1 5 42 7 22 13 28 5 11 36 15 Peak Tracking Total 21 | . 6 3 . . 4 3 5 . 4 4 4 1 5 8 2 6 5 21 3 21 21 6 Tactical Retreats 39 | . 5 . . . 1 2 2 . . 3 4 . . 6 . 1 2 3 . 3 3 4 Traps | -11 -10 -10 -10 -9 -8 -7 -7 -7 -7 -6 -6 -5 -5 -5 -4 -4 -3 -3 -2 -2 -2 -1 ------- Run | Jun Mat Min Exi Min Mat Fac Low Low Dat Pro Fac Fac Was Fac Fac Ext Res Qua Res Tes Sec Acc Traps Triggered 12 | . . . . . 1 2 . . . . 1 1 . 2 . 3 . 1 . . . 1 Indirectly . | . . . . . . . . . . . . . . . . . . . . . . . Trap Hack Attempts 124 | . . . . . . 18 . . . . 19 . . 37 38 9 3 . . . . . Triggered . | . . . . . . . . . . . . . . . . . . . . . . . Disarmed 3 | . . . . . . . . . . . . . . 2 . . 1 . . . . . Reprogrammed 31 | . . . . . . 4 . . . . 6 . . 8 11 2 . . . . . . Reused 19 | . . . . . . . . . . . 9 . . 4 6 . . . . . . . Traps Extracted 16 | . . . . . . 4 . . . . . . . 10 1 1 . . . . . . Installed 12 | . . . . . . . . . . . 3 . . 6 3 . . . . . . . Triggered 23 | . . . . . . . 1 . . . 11 . . 5 6 . . . . . . . Most Traps Carried 5 | . . . . . . 4 4 4 4 4 4 1 1 5 3 2 2 2 2 2 2 2 Machines | -11 -10 -10 -10 -9 -8 -7 -7 -7 -7 -6 -6 -5 -5 -5 -4 -4 -3 -3 -2 -2 -2 -1 ---------- Run | Jun Mat Min Exi Min Mat Fac Low Low Dat Pro Fac Fac Was Fac Fac Ext Res Qua Res Tes Sec Acc Machines Disabled 12 | . . . . . 2 . . . 1 . . . . . . . 1 . . 3 3 2 Max in Single Turn 2 | . . . . . 2 . . . 1 . . . . . . . 1 . . 1 1 1 Garrison Access 15 | . . . . . . 3 . . . . 3 . . 3 2 . 1 . 1 . . 2 Energy Cycler 1 | . . . . . . . . . . . . . . . . . . . . . . 1 Machines Repaired . | . . . . . . . . . . . . . . . . . . . . . . . Machines Sabotaged . | . . . . . . . . . . . . . . . . . . . . . . . Overloaded Fab Kills . | . . . . . . . . . . . . . . . . . . . . . . . Hacking | -11 -10 -10 -10 -9 -8 -7 -7 -7 -7 -6 -6 -5 -5 -5 -4 -4 -3 -3 -2 -2 -2 -1 --------- Run | Jun Mat Min Exi Min Mat Fac Low Low Dat Pro Fac Fac Was Fac Fac Ext Res Qua Res Tes Sec Acc Machines Accessed 147 | . 5 . 2 . 8 19 . . 3 . 23 . . 28 16 15 6 . 12 . . 10 Terminals 95 | . 5 . . . 7 9 . . . . 14 . . 15 11 15 5 . 6 . . 8 Fabricators 9 | . . . . . . 2 . . . . 4 . . 3 . . . . . . . . Repair Stations 7 | . . . . . . . . . . . 1 . . 3 1 . . . 2 . . . Recycling Units 13 | . . . . . 1 3 . . . . 1 . . 4 2 . . . 2 . . . Scanalyzers 2 | . . . . . . 1 . . . . . . . . . . . . 1 . . . Garrison Access 16 | . . . . . . 4 . . . . 3 . . 3 2 . 1 . 1 . . 2 Total Hacks 447 | . 9 . 2 . 25 40 . . 17 . 63 . . 79 54 29 23 . 56 . . 50 Successful 328 | . 3 . 2 . 12 25 . . 17 . 52 . . 68 45 25 12 . 43 . . 24 Failed 119 | . 6 . . . 13 15 . . . . 11 . . 11 9 4 11 . 13 . . 26 Catastrophic 18 | . 2 . . . 2 3 . . . . . . . 2 . . 3 . 1 . . 5 Database Lockouts . | . . . . . . . . . . . . . . . . . . . . . . . Manual 234 | . 7 . 1 . 11 20 . . . . 39 . . 46 30 14 14 . 17 . . 35 Terminals 335 | . 9 . . . 22 21 . . . . 47 . . 55 44 29 21 . 39 . . 48 Fabricators 21 | . . . . . . 3 . . . . 10 . . 8 . . . . . . . . Repair Stations 25 | . . . . . . . . . . . 2 . . 6 5 . . . 12 . . . Recycling Units 24 | . . . . . 3 7 . . . . 1 . . 7 3 . . . 3 . . . Scanalyzers 4 | . . . . . . 3 . . . . . . . . . . . . 1 . . . Garrison Access 19 | . . . . . . 6 . . . . 3 . . 3 2 . 2 . 1 . . 2 Terminal Hacks 202 | . 1 . 2 . 7 8 . . 17 . 32 . . 38 29 21 8 . 24 . . 15 Record 12 | . . . 1 . . . . . 11 . . . . . . . . . . . . . Part Schematic 5 | . . . . . . . . . 3 . 1 . . 1 . . . . . . . . Robot Analysis 4 | . . . . . . 1 . . . . 1 . . . 1 1 . . . . . . Prototype ID Bank 14 | . . . . . 1 . . . 3 . 3 . . 2 3 . . . 1 . . 1 Open Door 9 | . . . . . . . . . . . . . . . . 9 . . . . . . Open DSF 1 | . . . . . . . . . . . . . . . . . . . 1 . . . Level Access Points 5 | . . . . . . . . . . . 1 . . 2 . . 1 . . . . 1 Branch Access Points 8 | . . . . . . 1 . . . . 1 . . 2 1 1 1 . 1 . . . Machine Index 5 | . . . . . . . . . . . 1 . . 1 1 . 1 . 1 . . . Terminal Index 3 | . . . . . . 1 . . . . . . . . . . . . 1 . . 1 Alert Level 18 | . . . . . 1 . . . . . 1 . . 3 2 1 2 . 4 . . 4 Unreport Threat 22 | . . . . . 2 1 . . . . . . . 1 1 1 2 . 8 . . 6 Locate Traps 45 | . 1 . . . 2 3 . . . . 12 . . 11 8 4 . . 4 . . . Dispatch Records 1 | . . . . . . . . . . . . . . 1 . . . . . . . . Recall Investigation 3 | . . . . . . 1 . . . . 1 . . 1 . . . . . . . . Recall Extermination 7 | . . . . . . . . . . . 2 . . 3 2 . . . . . . . Recall Reinforcements 6 | . . . . . . . . . . . 1 . . 3 2 . . . . . . . Hauler Manifests 1 | . . . . . . . . . . . 1 . . . . . . . . . . . Registered Prototypes 1 | . . . . . . . . . . . . . . 1 . . . . . . . . Zone Layout 31 | . . . . . 1 . . . . . 6 . . 6 8 4 1 . 3 . . 2 Derelict Proto ID Bank 1 | . . . 1 . . . . . . . . . . . . . . . . . . . Fabricator Hacks 4 | . . . . . . . . . . . 2 . . 2 . . . . . . . . Load Schematic 2 | . . . . . . . . . . . 1 . . 1 . . . . . . . . Build 2 | . . . . . . . . . . . 1 . . 1 . . . . . . . . Repair Station Hacks 23 | . . . . . . . . . . . 2 . . 6 4 . . . 11 . . . Scan Component 12 | . . . . . . . . . . . 1 . . 3 2 . . . 6 . . . Repair 11 | . . . . . . . . . . . 1 . . 3 2 . . . 5 . . . Recycling Unit Hacks 14 | . . . . . . 4 . . . . 1 . . 5 2 . . . 2 . . . Retrieve Components 14 | . . . . . . 4 . . . . 1 . . 5 2 . . . 2 . . . Scanalyzer 3 | . . . . . . 2 . . . . . . . . . . . . 1 . . . Insert Component 2 | . . . . . . 1 . . . . . . . . . . . . 1 . . . Analyze 1 | . . . . . . 1 . . . . . . . . . . . . . . . . Garrison Access Hacks 15 | . . . . . . 3 . . . . 3 . . 3 2 . 1 . 1 . . 2 Seal Access 15 | . . . . . . 3 . . . . 3 . . 3 2 . 1 . 1 . . 2 Unauthorized Hacks 67 | . 2 . . . 5 8 . . . . 12 . . 14 8 4 3 . 4 . . 7 Terminals 51 | . 2 . . . 5 5 . . . . 7 . . 7 7 4 3 . 4 . . 7 Assimilate 16 | . . . . . 1 2 . . . . 1 . . 4 3 2 2 . . . . 1 Botnet 30 | . 2 . . . 4 2 . . . . 5 . . 3 3 2 1 . 3 . . 5 Operators 5 | . . . . . . 1 . . . . 1 . . . 1 . . . 1 . . 1 Fabricators 14 | . . . . . . 3 . . . . 5 . . 6 . . . . . . . . Prioritize 2 | . . . . . . . . . . . 1 . . 1 . . . . . . . . Fabnet 8 | . . . . . . 2 . . . . 3 . . 3 . . . . . . . . Haulers 4 | . . . . . . 1 . . . . 1 . . 2 . . . . . . . . Repair Stations . | . . . . . . . . . . . . . . . . . . . . . . . Recycling Units 2 | . . . . . . . . . . . . . . 1 1 . . . . . . . Mask 2 | . . . . . . . . . . . . . . 1 1 . . . . . . . Scanalyzers . | . . . . . . . . . . . . . . . . . . . . . . . Garrison Access . | . . . . . . . . . . . . . . . . . . . . . . . Data Cores Recovered 2 | . 1 . . . . . . . . . . . . 1 . . . . . . . . Used . | . . . . . . . . . . . . . . . . . . . . . . . Hacking Detections 81 | . 5 . . . 7 12 . . . . 10 . . 16 7 3 6 . 7 . . 8 Full Trace Events 8 | . 1 . . . . 2 . . . . 1 . . 2 1 . 1 . . . . . Feedback Events 1 | . . . . . . . . . . . . . . . . . 1 . . . . . Hackware Fried 1 | . . . . . . . . . . . . . . . . . 1 . . . . . Feedback Blocked . | . . . . . . . . . . . . . . . . . . . . . . . Robot Schematics Acquired . | . . . . . . . . . . . . . . . . . . . . . . . Robots Built . | . . . . . . . . . . . . . . . . . . . . . . . Authchips . | . . . . . . . . . . . . . . . . . . . . . . . Time . | . . . . . . . . . . . . . . . . . . . . . . . Total Robot Build Rating . | . . . . . . . . . . . . . . . . . . . . . . . Part Schematics Acquired 6 | . . . . . . 1 . . 3 . 1 . . 1 . . . . . . . . Parts Built 2 | . . . . . . . . . . . 1 . . 1 . . . . . . . . Authchips . | . . . . . . . . . . . . . . . . . . . . . . . Time 101 | . . . . . . . . . . . 25 . . 76 . . . . . . . . Total Part Build Rating 10 | . . . . . . . . . . . 5 . . 5 . . . . . . . . Parts Repaired 11 | . . . . . . . . . . . 1 . . 3 2 . . . 5 . . . Time 447 | . . . . . . . . . . . 35 . . 112 80 . . . 220 . . . Parts Recycled . | . . . . . . . . . . . . . . . . . . . . . . . Recycled Matter . | . . . . . . . . . . . . . . . . . . . . . . . Retrieved Matter . | . . . . . . . . . . . . . . . . . . . . . . . Retrieved Components 25 | . . . . . . 13 . . . . 2 . . 5 3 . . . 2 . . . Parts Scanalyzed 1 | . . . . . . 1 . . . . . . . . . . . . . . . . Part Schematics Acquired 1 | . . . . . . 1 . . . . . . . . . . . . . . . . Parts Damaged . | . . . . . . . . . . . . . . . . . . . . . . . Bothacking | -11 -10 -10 -10 -9 -8 -7 -7 -7 -7 -6 -6 -5 -5 -5 -4 -4 -3 -3 -2 -2 -2 -1 ------------ Run | Jun Mat Min Exi Min Mat Fac Low Low Dat Pro Fac Fac Was Fac Fac Ext Res Qua Res Tes Sec Acc Used RIF Installer . | . . . . . . . . . . . . . . . . . . . . . . . Robots Hacked 13 | . . . . . . . . . 1 . . . . 5 1 3 . 3 . . . . Non-combat 1 | . . . . . . . . . . . . . . 1 . . . . . . . . Combat 12 | . . . . . . . . . 1 . . . . 4 1 3 . 3 . . . . Robot Hacks Applied 2 | . . . . . . . . . 1 . . . . 1 . . . . . . . . parse_system 2 | . . . . . . . . . 1 . . . . 1 . . . . . . . . Relay Couplers Released . | . . . . . . . . . . . . . . . . . . . . . . . Fabnet Peak Effective % 11 | . . . . . . . . . . 6 6 11 11 11 9 9 2 2 . . . . Autooverrided 11 | . . . . . . . . . . . . . . 4 1 3 . 3 . . . . Robots Rewired 12 | . . . . . . 1 . . . . . . . . . 11 . . . . . . Allies Hacked 1 | . . . . . . . . . . . . . . . . . . 1 . . . . Hacks Repelled . | . . . . . . . . . . . . . . . . . . . . . . . Allies | -11 -10 -10 -10 -9 -8 -7 -7 -7 -7 -6 -6 -5 -5 -5 -4 -4 -3 -3 -2 -2 -2 -1 -------- Run | Jun Mat Min Exi Min Mat Fac Low Low Dat Pro Fac Fac Was Fac Fac Ext Res Qua Res Tes Sec Acc Total Allies 52 | . . 1 . . . 3 . . . . 1 . 1 8 4 29 1 3 . . . 1 Largest Group 15 | . . 1 . . . 1 . . . . 1 . 1 3 3 15 14 2 . . . 1 Highest-Rated Group 785 | . . 31 . . . 21 . . . . 26 . 31 195 82 785 736 122 . . . 26 Highest-Rated Ally 159 | . . 31 . . . 21 . . . . 26 . 31 137 56 159 159 74 . . . 26 Total Orders 16 | . . . . . . 3 . . . . 3 . . 3 4 1 2 . . . . . STAY 12 | . . . . . . 2 . . . . 2 . . 2 3 1 2 . . . . . FOLLOW 4 | . . . . . . 1 . . . . 1 . . 1 1 . . . . . . . Ally Attacks 174 | . . 6 . . . . . . . . . . . 14 3 73 74 4 . . . . Total Damage 5055 | . . 103 . . . . . . . . . . . 352 73 2292 2085 150 . . . . Kills 29 | . . 4 . . . . . . . . . . . . . 14 11 . . . . . Allies Corrupted . | . . . . . . . . . . . . . . . . . . . . . . . Allies Melted 2 | . . . . . . . . . . . . . . . . . 2 . . . . . Intel | -11 -10 -10 -10 -9 -8 -7 -7 -7 -7 -6 -6 -5 -5 -5 -4 -4 -3 -3 -2 -2 -2 -1 ------- Run | Jun Mat Min Exi Min Mat Fac Low Low Dat Pro Fac Fac Was Fac Fac Ext Res Qua Res Tes Sec Acc Robot Analysis Total 4 | . . . . . . 1 . . . . 1 . . . 1 1 . . . . . . Derelict Logs Recovered 5 | . . 1 . 1 . . 1 1 . 1 . . . . . . . . . . . . Drone Launches . | . . . . . . . . . . . . . . . . . . . . . . . Drone Recoveries . | . . . . . . . . . . . . . . . . . . . . . . . Exploration | -11 -10 -10 -10 -9 -8 -7 -7 -7 -7 -6 -6 -5 -5 -5 -4 -4 -3 -3 -2 -2 -2 -1 ------------- Run | Jun Mat Min Exi Min Mat Fac Low Low Dat Pro Fac Fac Was Fac Fac Ext Res Qua Res Tes Sec Acc Turns Passed 19788 | 70 1473 809 456 509 2461 1562 84 45 119 154 3106 137 27 3888 1691 761 755 144 657 171 240 469 Spaces Moved 24988 | 41 646 380 212 199 1060 2741 302 148 160 495 3872 292 91 5726 2789 813 1241 387 923 581 570 1319 Core 7 | 5 . . . . . 2 . . . . . . . . . . . . . . . . Treads 373 | 36 337 . . . . . . . . . . . . . . . . . . . . . Legs . | . . . . . . . . . . . . . . . . . . . . . . . Wheels 2160 | . 309 380 212 199 1060 . . . . . . . . . . . . . . . . . Hover . | . . . . . . . . . . . . . . . . . . . . . . . Flight 22448 | . . . . . . 2739 302 148 160 495 3872 292 91 5726 2789 813 1241 387 923 581 570 1319 Fastest Speed 14 | 50 110 150 215 215 135 26 26 26 26 14 26 26 26 26 22 20 20 20 21 18 21 19 Average Speed 39 | 146 181 193 215 215 144 26 26 26 26 25 26 26 26 26 22 22 22 21 21 21 21 21 Slowest Speed 230 | 160 215 215 215 215 230 50 26 26 26 26 26 104 26 26 99 23 23 23 93 93 21 24 Overloaded Moves 33 | . . . . . . . . . . 11 . . . . . . . . . 22 . . Propulsion Burnouts . | . . . . . . . . . . . . . . . . . . . . . . . Robots Hopped 72 | . . . . . . 12 . . . . 23 . . 14 12 3 1 . 1 . 1 5 Cave-ins Triggered . | . . . . . . . . . . . . . . . . . . . . . . . Exploration Rate (%) 55 | 3 75 61 61 50 64 67 54 41 81 57 73 14 86 83 55 73 27 55 28 67 51 43 Regions Visited 22 Branch Regions 11 Pre-discovered Areas 3 | . . . 1 . . . . . 1 1 . . . . . . . . . . . . Known Exits Taken 7 | . . . . . . 1 . . . . 1 . . 1 1 . 1 1 1 . . . Unknown Exits Taken 13 | 1 1 1 1 1 1 . 1 1 1 1 . . . . . 1 . . . 1 1 . Scrap Searched 6 | . . 2 . 1 . . 1 . . 2 . . . . . . . . . . . . Spaces Dug 273 | . . . . . 9 31 . . . 18 45 5 . 61 53 9 4 6 12 1 4 15 Terrain Destroyed 545 | . . 18 . . 78 31 . . . 44 49 5 . 70 63 57 7 6 14 25 52 26 Melee 216 | . . . . . 9 31 . . . 2 40 5 . 56 32 9 4 6 11 1 4 6 Projectile 77 | . . . . . . . . . . . 9 . . 14 31 2 3 . 3 . 2 13 AOE 252 | . . 18 . . 69 . . . . 42 . . . . . 46 . . . 24 46 7 Terrain Rammed . | . . . . . . . . . . . . . . . . . . . . . . . Walls Destroyed . | . . . . . . . . . . . . . . . . . . . . . . . Machines Disabled . | . . . . . . . . . . . . . . . . . . . . . . . Actions | -11 -10 -10 -10 -9 -8 -7 -7 -7 -7 -6 -6 -5 -5 -5 -4 -4 -3 -3 -2 -2 -2 -1 --------- Run | Jun Mat Min Exi Min Mat Fac Low Low Dat Pro Fac Fac Was Fac Fac Ext Res Qua Res Tes Sec Acc Total 33704 | 48 850 447 213 238 1868 3445 307 150 203 514 5819 342 93 7949 3727 1336 1666 433 1337 617 658 1444 Wait 7308 | . 97 38 . 4 618 524 2 1 11 12 1825 37 1 2012 771 445 381 12 375 13 55 74 Move 24833 | 40 645 379 211 198 1059 2719 301 147 159 494 3830 292 90 5697 2765 806 1238 387 920 580 568 1308 Hop 63 | . . . . . . 9 . . . . 18 . . 14 11 3 1 . 1 . 1 5 Pick Up 110 | 2 24 7 1 2 30 9 1 . 4 . 6 2 2 6 6 . . 1 3 1 1 2 Fast Attach 118 | 6 4 . . 2 9 25 1 . 1 . 6 2 . 17 15 . 4 2 7 5 2 10 Attach 35 | . 2 2 . . 7 3 . . . . 2 1 . 3 5 . 2 1 2 . 3 2 Detach 19 | . 4 . . . 2 2 . . . . 1 . . 4 2 . . 1 1 . 1 1 Swap 85 | . 7 4 . . 20 10 . . . 2 5 . . 14 10 5 . . . 5 1 2 Drop 176 | . 9 8 1 4 41 37 2 . 4 1 10 2 . 20 19 . 4 1 1 6 4 2 Fire 264 | . 58 7 . 28 66 . . . . 3 15 . . 14 32 4 7 . 4 2 8 16 Melee 468 | . . . . . 16 76 . 2 24 2 71 6 . 87 50 35 26 10 23 5 13 22 Ram 1 | . . . . . . . . . . . . . . . . . . . . . 1 . Kick . | . . . . . . . . . . . . . . . . . . . . . . . Crush . | . . . . . . . . . . . . . . . . . . . . . . . Escape Stasis 79 | . . . . . . 13 . . . . 8 . . 18 . 22 . 18 . . . . Rewire 9 | . . 2 . . . . . . . . . . . . . 7 . . . . . . Trap 136 | . . . . . . 18 . . . . 22 . . 43 41 9 3 . . . . . Miscellaneous . | . . . . . . . . . . . . . . . . . . . . . . . Route ------- -11/Junkyard -10/Materials (discovered 5 exits: [*Mat x2] / [*Min x2] / [*Sub]) -10/Mines (discovered 3 exits: [*Mat x2] / *Exi) -10/Exiles -9/Mines -8/Materials -7/Factory (discovered 6 exits: *Fac x3 / Sto / *Low x2) -7/Lower Caves -7/Lower Caves -7/Data Miner -6/Proximity Caves -6/Factory (discovered 6 exits: *Fac x4 / *Low x2) -5/Factory -5/Waste -5/Factory (discovered 6 exits: *Fac x4 / *Upp x2) -4/Factory (discovered 5 exits: *Upp x2 / *Ext x2 / Arm) -4/Extension (discovered 2 exits: *Res / *Cet) -3/Research (discovered 5 exits: Res x3 / *Qua x2) -3/Quarantine -2/Research (discovered 2 exits: *Tes x2) -2/Testing -2/Section 7 -1/Access To Epsilon Eridani History --------- Turn | Location | Event 7 | -11/Junkyard | Discovered new exit (range 15) 71 | -11/Junkyard | Entered Materials 251 | -10/Materials | Discovered new exit (range 4) 311 | -10/Materials | Build established: Mutant 564 | -10/Materials | Discovered new exit (range 4) 623 | -10/Materials | Discovered new exit (range 14) 913 | -10/Materials | Discovered new exit (range 11) 1300 | -10/Materials | Derelicts attacked the area 1320 | -10/Materials | Core integrity fell below 50% 1438 | -10/Materials | Discovered new exit (range 10) 1544 | -10/Materials | Entered Mines 1563 | -10/Mines | Met a Derelict bent on vengeance 1659 | -10/Mines | Received a Mining Laser from a helpful Derelict 1862 | -10/Mines | Joined a pair of Derelicts in attacking an 0b10 outpost 1958 | -10/Mines | Discovered new exit (range 7) 2048 | -10/Mines | Learned Materials terminal intel 2175 | -10/Mines | Build established: Scavenger-Mutant 2237 | -10/Mines | Discovered new exit (range 14) 2345 | -10/Mines | Deemed a non-threat by the Exiles lab entrance 2345 | -10/Mines | Discovered new exit (range 5) 2353 | -10/Mines | Entered Exiles 2407 | -10/Exiles | Met 8R-AWN 2442 | -10/Exiles | Met EX-HEX 2500 | -10/Exiles | Met EX-BIN 2530 | -10/Exiles | Aligned with FarCom system 2532 | -10/Exiles | Given EX-Vault access code 2586 | -10/Exiles | Opened EX-Vault 2606 | -10/Exiles | Found Latent Energy Streamer 2647 | -10/Exiles | Warned to stay clear of 0b10 Research branches 2712 | -10/Exiles | Met EX-DEC 2720 | -10/Exiles | Learned location of Zion (-6) 2787 | -10/Exiles | Discovered new exit (range 11) 2809 | -10/Exiles | Left Exiles lab with Latent Energy Streamer 2809 | -10/Exiles | Entered Mines 2935 | -9/Mines | Learned Materials interactive machine intel 3019 | -9/Mines | YI-UF0 nonchalantly dropped a Grenade Launcher on the ground 3069 | -9/Mines | Destroyed YI-UF0 3082 | -9/Mines | Found Prototype Launcher 3082 | -9/Mines | Identified YI-UF0's Doublenader 3294 | -9/Mines | Received a Rocket Launcher from a helpful Derelict 3307 | -9/Mines | Discovered new exit (range 5) 3318 | -9/Mines | Entered Materials 3318 | -8/Materials | Evolved 4 slots: Propulsion x1, Utility x3 3319 | -8/Materials | Loaded intel: 19 interactive machine locations 3320 | -8/Materials | Loaded intel: 12 terminal locations 3852 | -8/Materials | Build established: Scavenger-Assassin 4159 | -8/Materials | Build established: Scavenger-Skirmisher 4965 | -8/Materials | Garrison activated, responded to threat 5469 | -8/Materials | Discovered new exit (range 8) 5493 | -8/Materials | Build established: Skirmisher 5779 | -8/Materials | Entered Factory 5779 | -7/Factory | Evolved 2 slots: Propulsion x1, Utility x1 5890 | -7/Factory | Discovered new exit (range 12) 6051 | -7/Factory | Identified exit to Storage 6051 | -7/Factory | Identified exit to Lower Caves 6066 | -7/Factory | Discovered new exit (range 3) 6084 | -7/Factory | Build established: Hacker-Scout 6447 | -7/Factory | Discovered new exit (range 9) 7341 | -7/Factory | Entered Lower Caves 7369 | -7/Lower Caves | Ambushed by wild Derelicts 7404 | -7/Lower Caves | Learned Factory terminal intel 7416 | -7/Lower Caves | Discovered new exit (range 16) 7425 | -7/Lower Caves | Entered another Lower Caves area 7459 | -7/Lower Caves | Learned Factory emergency access door positions 7466 | -7/Lower Caves | Discovered new exit (range 15) 7470 | -7/Lower Caves | Entered Data Miner 7470 | -7/Data Miner | Discovered new exit (range 6) 7475 | -7/Data Miner | Met Data Miner 7490 | -7/Data Miner | Learned location of Section 7 (-2) 7491 | -7/Data Miner | Acquired the access code to Warlord's prototype stash 7495 | -7/Data Miner | Received God Mode back door access code from Data Miner 7502 | -7/Data Miner | Destroyed Data Miner 7504 | -7/Data Miner | Found Deep Network Scanner 7506 | -7/Data Miner | Found Ghost Barrier 7507 | -7/Data Miner | Data Conduit disabled 7589 | -7/Data Miner | Entered Proximity Caves 7626 | -6/Proximity Caves | Build established: Hacker-Sprinter 7641 | -6/Proximity Caves | Attracted the attention of an 0b10 checkpoint 7734 | -6/Proximity Caves | Spotted B-75 Beast 7739 | -6/Proximity Caves | Discovered new exit (range 5) 7743 | -6/Proximity Caves | Entered Factory 7743 | -6/Factory | Evolved 2 slots: Utility x2 7745 | -6/Factory | Loaded intel: 26 terminal locations 7749 | -6/Factory | Identified exit to Factory 7935 | -6/Factory | Identified exit to Lower Caves 8047 | -6/Factory | Build established: Wizard-Scout 8448 | -6/Factory | Garrison activated, responded to threat 9151 | -6/Factory | Repaired Cld. VTOL Module 9192 | -6/Factory | Spotted B-75 Beast 9530 | -6/Factory | Fabricated Cld. Cesium-ion Thruster (x1) 10506 | -6/Factory | Cargo convoy interrupted 10849 | -6/Factory | Entered another Factory area 10849 | -5/Factory | Evolved 2 slots: Power x1, Utility x1 10986 | -5/Factory | Sucked down chute 10986 | -5/Factory | Entered Waste 10987 | -5/Waste | Met a frightened Derelict 10992 | -5/Waste | Spotted C-40 Crusher 10994 | -5/Waste | Spotted C-40 Crusher 10995 | -5/Waste | Spotted C-40 Crusher 10996 | -5/Waste | Spotted C-40 Crusher 10998 | -5/Waste | Found Enh. Force Lance 10999 | -5/Waste | Spotted C-40 Crusher 11000 | -5/Waste | Spotted C-40 Crusher 11001 | -5/Waste | EMP discharged 11006 | -5/Waste | Discovered new exit (range 11) 11013 | -5/Waste | Entered Factory 11078 | -5/Factory | Repaired Enh. Force Lance 11231 | -5/Factory | Identified exit to Upper Caves 11231 | -5/Factory | Identified exit to Factory 12472 | -5/Factory | Spotted B-75 Beast 12478 | -5/Factory | Repaired Adv. System Restoration Module 12518 | -5/Factory | Repaired Corrupted Neutron Missile Launcher 12910 | -5/Factory | Fabricated Exp. Utility Shielding? 13709 | -5/Factory | Cargo convoy interrupted 13737 | -5/Factory | Found Prototype Slashing Weapon 13737 | -5/Factory | Identified Nanosword 13745 | -5/Factory | Found Prototype Launcher 13745 | -5/Factory | Identified Hellfire Missile Launcher 14896 | -5/Factory | Local machine network offline 14901 | -5/Factory | Entered another Factory area 14901 | -4/Factory | Evolved 2 slots: Power x1, Propulsion x1 14976 | -4/Factory | Repaired Cld. Cesium-ion Thruster 15018 | -4/Factory | Repaired Cld. Plasma Cannon 15304 | -4/Factory | Discovered new exit (range 16) 15308 | -4/Factory | Discovered new exit (range 7) 15555 | -4/Factory | Identified exit to Upper Caves 15555 | -4/Factory | Identified exit to Extension 15555 | -4/Factory | Identified exit to Armory 15873 | -4/Factory | Cargo convoy interrupted 15983 | -4/Factory | Found Prototype Device 15983 | -4/Factory | Identified Exp. Shield Generator 15985 | -4/Factory | Found Prototype Processor 15985 | -4/Factory | Identified Spectral Analyzer 16140 | -4/Factory | Spotted B-86 Titan 16592 | -4/Factory | Entered Extension 16604 | -4/Extension | Rescued a captive Derelict 16627 | -4/Extension | Rescued a captive Derelict 16629 | -4/Extension | Rescued a captive Derelict 16803 | -4/Extension | Rescued a captive Derelict 17014 | -4/Extension | Spotted B-86 Titan 17065 | -4/Extension | Spotted B-86 Titan 17071 | -4/Extension | Rescued a captive Derelict 17072 | -4/Extension | Rescued a captive Derelict 17084 | -4/Extension | Rescued a captive Derelict 17091 | -4/Extension | Rescued a captive Derelict 17091 | -4/Extension | Rescued a captive Derelict 17096 | -4/Extension | Rescued a captive Derelict 17098 | -4/Extension | Rescued a captive Derelict 17099 | -4/Extension | Identified exit to Cetus 17240 | -4/Extension | Rescued A7 17247 | -4/Extension | Rescued a captive Derelict 17247 | -4/Extension | Rescued a captive Derelict 17279 | -4/Extension | Local machine network offline 17306 | -4/Extension | Discovered new exit (range 10) 17353 | -4/Extension | Entered Research 17353 | -3/Research | Accompanied by 14 allies (A7) 17353 | -3/Research | Evolved 2 slots: Weapon x2 17458 | -3/Research | Garrison activated, responded to threat 17603 | -3/Research | First assault squad dispatched 17951 | -3/Research | Identified exit to Quarantine 17951 | -3/Research | Identified exit to Research 17952 | -3/Research | Imp. System Shield fried by hacking feedback 18023 | -3/Research | Spotted B-90 Cyclops 18108 | -3/Research | Entered Quarantine 18109 | -3/Quarantine | Maximum security lockdown engaged 18229 | -3/Quarantine | Spotted Executioner 18248 | -3/Quarantine | Discovered exit to Research (range 5) 18252 | -3/Quarantine | Entered Research 18252 | -2/Research | Evolved 2 slots: Utility x2 18256 | -2/Research | Identified exit to DSF 18326 | -2/Research | Identified exit to Testing 18567 | -2/Research | Repaired Cld. Cesium-ion Thruster 18620 | -2/Research | Repaired Diametric Drive 18728 | -2/Research | Repaired Mic. Fission Core? 18830 | -2/Research | Repaired Electron Diverter 18894 | -2/Research | Repaired Diametric Drive 18909 | -2/Research | Entered Testing 18910 | -2/Testing | Maximum security lockdown engaged 18955 | -2/Testing | Found Prototype Energy Cannon 18955 | -2/Testing | Identified Disintegrator 19021 | -2/Testing | Found Prototype Energy Gun 19037 | -2/Testing | Found Nanosword 19057 | -2/Testing | Identified Hyp. EM Gauss Rifle 19061 | -2/Testing | Spotted Fortress 19076 | -2/Testing | Discovered new exit (range 5) 19080 | -2/Testing | Entered Section 7 19081 | -2/Section 7 | Maximum security lockdown engaged 19082 | -2/Section 7 | Spotted S7 Guard 19095 | -2/Section 7 | Discovered new exit (range 24) 19127 | -2/Section 7 | Spotted Alpha 7 19169 | -2/Section 7 | Spotted Executioner 19169 | -2/Section 7 | Spotted Executioner 19191 | -2/Section 7 | Found Alien Energy Cannon 19191 | -2/Section 7 | Identified Drained L-Cannon 19250 | -2/Section 7 | Spotted B-99 Colossus 19260 | -2/Section 7 | Spotted Alpha 7 19320 | -2/Section 7 | Entered Access 19320 | -1/Access | Evolved 2 slots: Propulsion x1, Utility x1 19350 | -1/Access | Lost 3 parts (1n1u1w) 19561 | -1/Access | Energy Cycler disabled 19570 | -1/Access | First assault squad dispatched 19578 | -1/Access | Spotted B-99 Colossus 19595 | -1/Access | Identified exit to Surface 19652 | -1/Access | Found Prototype Device 19652 | -1/Access | Identified Exp. Thermal Defense Suite 19789 | *** | Escaped! Last Messages --------------- >>Alert(Check) Current Alert Level: 3-K >>Layout(Zone) Retrieving Zone 4Y layout... Downloaded map data. >>Alert(Purge) Purged threat record, alert level lowered. >>Alert(Purge) Purged threat record, alert level lowered. >>Alert(Check) Current Alert Level: 2-O >>Prototypes Downloading prototype IDs... Singularity Reactor Exp. Q-thruster Exp. Cloaking Device 19734_ Administrator 10a reveals location of Alarm Trap. 19735_ Administrator 10a reports 0b10 security level has lowered to 2. 19738_ Administrator 10a reveals location of hidden door. 19774_ The Access Shell folds into the floor. Map ----- +----------------------------------------------------+ | ?????????????????????????????????????????????????? | | ?????????????????????????????????????????????????? | | ?????????????????????????????????????????????????? | | ?????????????????????????????????????????????????? | | ?????????????????????????????????????????????????? | | ?????????????????????????????????????????????????? | | ?????????????????????????????????????? ?????????? | | ?????????????????????????????????????? ##???????? | | ?????????????????????????????????????? ##???????? | | ?????????????????????????????????????? # ???????? | | ?????????????????????????????????????? # ???????? | | ?????????????????????????????????????? # ???????? | | ?????????????????????????????????????? # ???????? | | ?????????????????????????????????????? # ???????? | | ?????????????????????????????????????? # ???????? | | ?????????????????????????????????????? + ???????? | | ????????????????????????????????????## # ???????? | | ????????????????????????????????????## # ???????? | | ????????????????????????????#####???## ##???????? | | ???????????????????################### ##???????? | | ???????????????????########### ####### ##???????? | | ???????????????????"" ##???????? | | ??????????????BB????" ##???????? | | ??????????????BB????" ##???????? | | ????????????????????" ##???????? | | ????????????????????" "@ ##???????? | | ????????????????????" "" o ##???????? | | ????????????????????" ##???????? | | ??????????????BB????" ##???????? | | ??????????????BB????" """ """ ##???????? | | ???????????????????"" """T""" ##???????? | | ???????????????????########### ####### ##???????? | | ???????????????????################### ########## | | ????????????????????????????#####???## ########## | | ????????????????????????????????????## # | | ????????????????????????????????????## # | | ?? ############################# + "" | | ??#################################### # "" | | # """""" | | # """""" | | ???#######+#########+#############+###### "" | | ???## # # # ? "" | | ????????????? # # # ? | | ????????????? # """"" # # ?? | | ????????????? # """"" # # ?? | | ????????????? # """"" # !!! # ?? | | ????????????? # """"" # !!! ##??###### | | ????????????? #]] """"" # !! ##??###### | | ????????????? #]] # = ##???????? | | ?????????????##] # ##???????? | +----------------------------------------------------+ Best States ------------- Heat Dissipation 90 Energy Generation 43 Energy Capacity 390 Matter Stores 300 Matter Capacity 800 Sight Range 24 Terrain Scan Range 14 Terrain Scan Density 10 Jamming Range 16 Armor Coverage 225 Utility Shielding 90 Weapon Shielding 33 Evasion (%) 72 Melee Accuracy 8 Recoil Reduction 2 Offensive Hacking 59 Defensive Hacking 62 Trap Extractor Capacity 8 Item Schematics ----------------- Imp. Flight Unit | -7/Factory | Scanalyzed Cld. Cesium-ion Thruster | -7/Data Miner | Free Lgt. Regenerative Plating | -7/Data Miner | Free Hvy. Phase Cannon | -7/Data Miner | Free Enh. Optical Array | -6/Factory | Hacked Exp. Utility Shielding | -5/Factory | Hacked Robot Schematics ------------------ None Fabricated ------------ Cld. Cesium-ion Thruster | x1 | -6/Factory Exp. Utility Shielding | x1 | -5/Factory Alien Tech Used ----------------- Drained L-Cannon Achievements -------------- None Challenges ------------ None Game ------ Seed HeatCoilWell Manual? 0 Play Time 03:14:35 Cumulative 1283.8 hours Start 2023.12.07 @ 14:38:06 End 2023.12.07 @ 17:55:18 Sessions 1 Manual Loads 0 Difficulty Rogue Special Mode None Game No. 926 Rogue 886 Adventurer 40 Explorer 0 Win Type 0 Total 152 Types 74/7/46/2/1/4/15/2/1 Lore% 93 Gallery% 96 Achievement% 83 Wizard Run 0 Options --------- ASCII 0 Keyboard 0 Movement Numpad Keybinds 0 Fullscreen 0 Font 20/Terminus Map View 76x50 Tactical HUD 1 Map Filters NONE Filters NONE Steam 1 RUN: 579f0691-6001-44a7-9cc8-b95f24f270aa